[Event "Canarian Championship Seniors 2022"]
[Site "Brena Baja La Palma"]
[Date "2022.06.03"]
[Round "4.4"]
[White "Haertl, Siegfried"]
[Black "Gasco Navarro, Enrique"]
[Result "1-0"]
[ECO "E12"]
[WhiteElo "1932"]
[BlackElo "1240"]
[Annotator "TA"]
[PlyCount "39"]
[EventDate "2022.06.01"]
[EventType "swiss"]
[EventCountry "ESP"]
[SourceTitle "playchess.com"]
[Source "ChessBase"]
[SourceQuality "1"]
[TimeControl "5400+30"]

{[%evp 9,39,9,85,79,124,131,130,138,139,176,304,195,309,322,306,296,602,618,1050,820,870,708,874,547,556,433,808,820,775,796,681,664]} 1. d4 {[%emt 0:00:29]} Nf6 {[%emt 0:00:29]} 2. Nf3 {[%emt 0:00:09]} e6 {[%emt 0:01:08]} 3. c4 {[%emt 0:00:27]} b6 {[%emt 0:00:20]} 4. Nc3 {[%emt 0:00:25]} Bb7 {[%emt 0:00:17]} 5. Qc2 {[%emt 0:00:33]} Nc6 {[%emt 0:01:28] [#]} (5... Bb4) (5... Bb4 $11) 6. e4 $1 $16 {[%emt 0:00:39][%cal Be2e4,Be4e5][%mdl 32] [#] E12: Queen's Indian: Unusual White 4th moves, 4 a3, 4 Nc3 Bb7 5 a3 and 4 Nc3 Bb7 .} Be7 $146 {[%emt 0:02:25]} (6... d6) ({Predecessor:} 6... Nb4 7. Qb1 d5 8. cxd5 exd5 9. e5 Ne4 10. a3 Nxc3 11. bxc3 Nc6 12. Bd3 h6 13. Bf4 {0-1 (33) Mba Oyone,J-Hartono,E (1612) ICCF email 2020}) 7. e5 {[%emt 0:01:12]} Ng8 {[%emt 0:03:22]} 8. a3 {[%emt 0:00:48] White is better.} f6 {[%emt 0:05:32]} 9. Bd3 {[%emt 0:01:38] White is more active.} f5 {[%emt 0:03:29]} (9... fxe5 $142 10. dxe5 d6) 10. O-O {[%emt 0:02:26] Threatens to win with d5.} g6 {[%emt 0:02:35]} (10... Qc8 11. d5 Nd8) (10... Qc8 $142 11. d5 Nd8) 11. d5 $18 {[%emt 0:01:03][%cal Bd4d5,Bd5e6][%mdl 32]} Nb8 {[%emt 0:06:22]} 12. Rd1 {[%emt 0:02:05]} Bf8 $2 {[%emt 0:09:22]} (12... Qc8 13. Be2 h5) 13. dxe6 {[%emt 0:01:39][%cal Od3f5] aiming for Bxf5! White is clearly winning.} d6 {[%emt 0:00:37]} 14. Ng5 {[%emt 0:01:57]} Nh6 {[%emt 0:01:59]} 15. Bf4 {[%emt 0:07:05][%cal Oc4c5] Hoping for c5!} Nc6 {[%emt 0:04:36]} 16. exd6 {[%emt 0:00:58]} Bxd6 {[%emt 0:01:37]} 17. Be2 {[%emt 0:01:34]} Qe7 {[%emt 0:01:11]} (17... Bxf4 $142 18. Rxd8+ Rxd8) 18. Nd5 {[%emt 0:01:34]} Qg7 {[%emt 0:03:37] [#]} 19. Nxc7+ $1 {[%emt 0:04:15][%mdl 512]} Bxc7 {[%emt 0:00:49]} 20. Rd7 {[%emt 0:00:00][%mdl 64] Skewer, Double Attack. White took control after the opening.  Weighted Error Value: White=0.48/Black=0.83} 1-0

[Event "Canarian Championship Seniors 2022"]
[Site "Brena Baja La Palma"]
[Date "2022.06.03"]
[Round "5.1"]
[White "Martin Luis, Cesar"]
[Black "Haertl, Siegfried"]
[Result "1/2-1/2"]
[ECO "D45"]
[WhiteElo "2049"]
[BlackElo "1932"]
[Annotator "TA"]
[PlyCount "92"]
[EventDate "2022.06.01"]
[EventType "swiss"]
[EventCountry "ESP"]
[SourceTitle "playchess.com"]
[Source "ChessBase"]
[SourceQuality "1"]
[TimeControl "5400+30"]

{[%evp 14,92,0,0,1,-2,53,57,91,77,79,86,71,66,89,94,92,82,100,71,116,80,81,66,114,64,92,61,67,56,54,23,61,29,43,31,33,38,31,29,34,39,33,8,8,7,81,79,83,50,53,50,37,22,22,0,0,0,0,0,0,0,0,0,0,0,0,0,0,0,8,8,8,0,8,0,0,0,8,8,8]} 1. d4 {[%emt 0:00:02]} Nf6 {[%emt 0:00:14]} 2. c4 {[%emt 0:00:17]} e6 {[%emt 0:00:07]} 3. Nf3 {[%emt 0:00:14]} d5 {[%emt 0:00:23]} 4. Nc3 {[%emt 0:00:19]} c6 {[%emt 0:01:00]} 5. e3 {[%emt 0:00:27]} Nbd7 {[%emt 0:00:52]} 6. b3 {[%emt 0:00:09]} Bb4 {[%emt 0:01:23]} 7. Bd2 {[%emt 0:00:08]} O-O {[%emt 0:02:00]} 8. Bd3 {[%emt 0:00:29]} Re8 {[%emt 0:02:04] D45: Semi-Slav: 5 e3.} 9. O-O {[%emt 0:05:56][%cal Oc3d5]} Bxc3 {[%emt 0:03:37] 9...dxc4 is the modern continuation.} (9... e5 $11 10. dxe5 dxc4) 10. Bxc3 $14 {[%emt 0:00:08] [#]} Ne4 $146 {[%emt 0:00:05] White is slightly better.} ({Predecessor:} 10... b6 11. Ne5 Nxe5 12. dxe5 Nd7 13. cxd5 cxd5 14. f4 Nc5 15. Bxh7+ Kxh7 16. Qh5+ Kg8 {1-0 (39) Cilia Vincenti,D (2108)-Jensen,L (2036) Budapest 2008}) 11. Bxe4 {[%emt 0:08:06]} dxe4 {[%emt 0:00:19]} 12. Nd2 {[%emt 0:00:05]} f5 {[%emt 0:00:11]} 13. f3 {[%emt 0:00:06]} exf3 {[%emt 0:01:52]} 14. Qxf3 {[%emt 0:01:27]} Nf6 {[%emt 0:01:45]} 15. e4 {[%emt 0:01:09]} a5 {[%emt 0:05:42]} 16. Rae1 {[%emt 0:06:04]} (16. a4) 16... Bd7 {[%emt 0:02:29]} (16... a4) 17. h3 {[%emt 0:03:28]} h6 {[%emt 0:00:45]} 18. Qg3 {[%emt 0:07:00]} Kh7 {[%emt 0:02:33]} (18... a4 $14) 19. Qd6 {[%emt 0:26:37] White is more active.} ({White should play} 19. Nf3 $16) 19... Qb8 {[%emt 0:03:10]} 20. Qxb8 {[%emt 0:03:08]} Raxb8 {[%emt 0:00:34]} 21. exf5 {[%emt 0:05:04]} exf5 {[%emt 0:00:30]} 22. Re5 {[%emt 0:00:36]} b6 {[%emt 0:02:07]} 23. Rfe1 {[%emt 0:00:40]} Kg8 {[%emt 0:04:58]} 24. Rxe8+ {[%emt 0:04:43]} Rxe8 {[%emt 0:00:47]} 25. Rxe8+ {[%emt 0:00:36]} Bxe8 {[%emt 0:00:18][%mdl 4096] Endgame KBN-KBN} 26. c5 {[%emt 0:00:22]} bxc5 {[%emt 0:01:26]} 27. dxc5 {[%emt 0:00:10] And now Bxf6 would win.} Nd7 {[%emt 0:00:54]} 28. Bd4 {[%emt 0:00:50]} Bf7 {[%emt 0:01:01]} 29. Nf3 {[%emt 0:00:24]} a4 {[%emt 0:01:10]} (29... Bd5 $11 {remains equal.}) 30. bxa4 $16 {[%emt 0:01:01]} Bxa2 {[%emt 0:00:21]} 31. Nh4 {[%emt 0:00:43]} Bb1 {[%emt 0:01:01]} 32. a5 {[%emt 0:01:05] Threatens to win with a6.} Nb8 {[%emt 0:00:10]} (32... Bd3 $2 {[#]} 33. Nxf5 $1 {[%mdl 512]} Kf7 34. Kf2 $1 $18 (34. Nxg7 Nxc5 35. Bxc5 Kxg7 $16)) 33. Kf2 {[%emt 0:03:11]} Kf7 {[%emt 0:00:28] The position is equal.} 34. g4 {[%emt 0:00:51]} fxg4 {[%emt 0:01:54]} 35. hxg4 {[%emt 0:00:02]} g6 {[%emt 0:00:16]} 36. Ke3 {[%emt 0:03:39]} Ke6 {[%emt 0:00:02]} 37. Bg7 {[%emt 0:08:23]} Kd5 {[%emt 0:03:06]} 38. Bxh6 {[%emt 0:00:54]} Kxc5 {[%emt 0:00:14]} 39. Kf4 {[%emt 0:00:17]} Kb5 {[%emt 0:02:58]} 40. Kg5 {[%emt 0:00:08]} Kxa5 {[%emt 0:00:07]} 41. Nxg6 {[%emt 0:00:05]} Nd7 {[%emt 0:01:22]} 42. Bg7 {[%emt 0:00:40]} Nc5 {[%emt 0:00:52]} 43. Ne7 {[%emt 0:03:22]} Kb5 {[%emt 0:01:07]} 44. Nf5 {[%emt 0:01:05]} Ne4+ {[%emt 0:01:42]} 45. Kf4 {[%emt 0:00:47]} c5 {[%emt 0:00:30]} 46. g5 {[%emt 0:01:01]} Nxg5 {[%emt 0:00:03] Weighted Error Value: White=0.11 (very precise) /Black=0.13 (very precise)} 1/2-1/2

[Event "Canarian Championship Seniors 2022"]
[Site "Brena Baja La Palma"]
[Date "2022.06.03"]
[Round "5.2"]
[White "Martin Rodriguez, Jose Carlos"]
[Black "Gutierrez Perez, Jose"]
[Result "0-1"]
[ECO "A95"]
[WhiteElo "1703"]
[BlackElo "1918"]
[Annotator "TA"]
[PlyCount "53"]
[EventDate "2022.06.01"]
[EventType "swiss"]
[EventCountry "ESP"]
[SourceTitle "playchess.com"]
[Source "ChessBase"]
[SourceQuality "1"]
[TimeControl "5400+30"]

{[%evp 16,53,19,-6,7,7,13,0,0,0,26,18,26,27,34,29,60,57,106,55,104,-10,22,20,35,-6,37,0,0,-10,41,-11,-11,-705,-690,-917,-910,-923,-885,-814]} 1. d4 {[%emt 0:00:10]} d5 {[%emt 0:00:22]} 2. c4 {[%emt 0:00:10]} e6 {[%emt 0:00:54]} 3. Nc3 {[%emt 0:00:09]} f5 {[%emt 0:00:19]} 4. cxd5 {[%emt 0:00:08]} exd5 {[%emt 0:00:02]} 5. Nf3 {[%emt 0:00:36]} Nf6 {[%emt 0:00:14]} 6. g3 {[%emt 0:00:11]} c6 {[%emt 0:00:44]} 7. Bg2 {[%emt 0:00:04]} Be7 {[%emt 0:00:38]} 8. O-O {[%emt 0:00:03]} O-O {[%emt 0:00:11]} 9. Bf4 {[%emt 0:00:52]} Ne4 {[%emt 0:01:09] A95: Classical Dutch: Classical Stonewall: 7 Nc3 c6.} 10. Ne5 {[%emt 0:02:16]} Nd7 {[%emt 0:01:04]} 11. Nd3 {[%emt 0:01:02]} Bf6 {[%emt 0:01:01] [#] The position is equal.} 12. Be5 $146 {[%emt 0:01:41]} ({Predecessor:} 12. Be3 Qe7 13. Qc1 Nb6 14. Nxe4 fxe4 15. Nc5 Nd7 16. b4 Nxc5 17. Qxc5 Qxc5 18. bxc5 {0-1 (50) Bleckmann,F-Stiepel,H Uelzen 1999}) 12... Qe7 {[%emt 0:01:38][%cal Rf6e5]} 13. Bxf6 {[%emt 0:00:26]} Qxf6 {[%emt 0:01:10]} 14. e3 {[%emt 0:00:43]} Re8 {[%emt 0:07:04]} 15. Rc1 {[%emt 0:00:13]} g5 {[%emt 0:03:04]} (15... Qd6) 16. b4 {[%emt 0:05:09]} Kg7 {[%emt 0:06:43]} (16... a6) (16... a6 $14) 17. Qh5 {[%emt 0:06:52]} (17. b5 $16) 17... Re6 {[%emt 0:01:43]} (17... Qe7 $14 {feels stronger.}) 18. Nxe4 {[%emt 0:08:04]} (18. f4 $16) 18... dxe4 {[%emt 0:04:11]} 19. Nb2 {[%emt 0:00:29]} Nb6 {[%emt 0:01:29]} 20. a4 {[%emt 0:03:15]} a5 {[%emt 0:04:30]} 21. b5 {[%emt 0:00:34]} (21. bxa5 $14 Rxa5 22. Qe2) 21... Bd7 $11 {[%emt 0:00:28]} 22. bxc6 {[%emt 0:01:39]} Bxc6 {[%emt 0:00:59]} (22... Rxc6 $11 23. g4 Rac8 24. Rxc6 Rxc6) 23. Ra1 {[%emt 0:00:35]} (23. Nc4 $14 Nxa4 24. Ne5) 23... g4 {[%emt 0:09:55] And now ...Kh8 would win.} 24. h4 $2 {[%emt 0:00:57][%mdl 8192] [#] White does not recover from this.} (24. Rfc1 $11) 24... h6 $1 $19 {[%emt 0:01:35] Hoping for ...Be8. Black is clearly winning.} 25. Rfc1 {[%emt 0:00:02]} Be8 {[%emt 0:02:12]} 26. Rc7+ {[%emt 0:00:09]} Kf8 {[%emt 0:02:31]} 27. Qxe8+ {[%emt 0:00:16] Weighted Error Value: White=0.74/Black=0.16 (very precise)} 0-1

[Event "Canarian Championship Seniors 2022"]
[Site "Brena Baja La Palma"]
[Date "2022.06.03"]
[Round "5.3"]
[White "Gonzalez Ortega, Jose Miguel"]
[Black "Machin Arbelo, Pedro Alexis"]
[Result "0-1"]
[ECO "D03"]
[WhiteElo "1726"]
[BlackElo "1975"]
[Annotator "TA"]
[PlyCount "71"]
[EventDate "2022.06.01"]
[EventType "swiss"]
[EventCountry "ESP"]
[SourceTitle "playchess.com"]
[Source "ChessBase"]
[SourceQuality "1"]
[TimeControl "5400+30"]

{[%evp 16,71,13,11,42,21,53,51,89,71,91,14,12,13,13,10,21,9,21,14,40,33,60,56,63,21,120,118,120,-289,-41,-304,-289,-331,-313,-360,-351,-361,-324,-416,-422,-425,-418,-426,-412,-402,-354,-485,-485,-578,-584,-566,-569,-537,-564,-29997,-29998,-29998]} 1. d4 {[%emt 0:00:07]} Nf6 {[%emt 0:00:14]} 2. Nf3 {[%emt 0:00:10]} e6 {[%emt 0:01:08]} 3. Bg5 {[%emt 0:00:16]} d5 {[%emt 0:01:03]} 4. e3 {[%emt 0:00:18]} c5 {[%emt 0:03:09]} 5. c3 {[%emt 0:00:42]} Nc6 {[%emt 0:00:17]} 6. Bd3 {[%emt 0:00:20]} h6 {[%emt 0:02:47]} 7. Bh4 {[%emt 0:01:55]} Bd6 {[%emt 0:01:16]} 8. Nbd2 {[%emt 0:02:05]} O-O {[%emt 0:05:12]} 9. O-O {[%emt 0:01:15]} Re8 {[%emt 0:07:01] D03: 1 d4 d5 2 Nf3 Nf6 3 Bg5, including Torre Attack with early ...d5.} (9... b6) 10. Re1 {[%emt 0:03:02] [#]} Be7 $146 {[%emt 0:07:59]} (10... b6) ({Predecessor:} 10... Bd7 11. e4 Be7 12. Bxf6 Bxf6 13. dxc5 Qc7 14. Qc2 a5 15. a4 Ne5 16. Nxe5 Bxe5 17. Nf3 {½-½ (42) Osmak,I (2392)-Socko,M (2458) Poland 2018}) 11. Bxf6 {[%emt 0:02:52]} gxf6 {[%emt 0:00:55] White is slightly better.} 12. dxc5 {[%emt 0:00:23]} Bxc5 {[%emt 0:00:40]} 13. Nd4 {[%emt 0:00:21]} (13. e4) ({White should try} 13. e4 $1 $16) 13... f5 $11 {[%emt 0:02:08]} 14. f4 {[%emt 0:03:39]} Qf6 {[%emt 0:03:11]} 15. Qf3 {[%emt 0:03:33]} Kf8 {[%emt 0:06:26]} 16. Re2 {[%emt 0:00:28]} Ke7 {[%emt 0:01:47]} 17. N2b3 {[%emt 0:00:55] Pair of Knights!} Bb6 {[%emt 0:01:39][%cal Bc5b6,Bb6c7,Bc7g3][%mdl 32]} 18. a4 {[%cal Ba2a4,Ba4a5][%mdl 32]} Kf8 {[%emt 0:00:30]} 19. a5 {Black must now prevent Nxc6.} Bc7 {[%emt 0:00:30]} 20. h3 e5 {[%emt 0:00:30] [#]} (20... a6 $11) 21. fxe5 $1 $16 Nxe5 {[%emt 0:00:30]} 22. Qxd5 {[%mdl 8192] [#]} Nxd3 $2 {[%emt 0:00:30]} (22... Rd8 $1 $19 {[%cal Rd8d5]} 23. Qb5 (23. Qc5+ $2 Bd6 $19) 23... a6) 23. Nb5 $2 {[%mdl 8192]} ({White has to play} 23. Qc4 $15) 23... Rd8 $19 {[%emt 0:00:30]} 24. Qc4 Bg3 {[%emt 0:00:30] Hoping for ...Be6.} 25. N3d4 Ne5 {[%emt 0:00:30]} 26. Qb4+ Qe7 {[%emt 0:00:30]} 27. Qb3 a6 {[%emt 0:00:30]} 28. Na3 Be6 {[%emt 0:00:30]} 29. Qc2 Qg5 {[%emt 0:00:30]} 30. Rf1 Nc6 {[%emt 0:00:30]} 31. Nxf5 Bxf5 {[%emt 0:00:30]} 32. Qxf5 Qxf5 {[%emt 0:00:30]} 33. Rxf5 Rd1+ {[%emt 0:00:30]} 34. Rf1 Rad8 {[%emt 0:00:30] ( -> ...Rxf1+)} 35. Nc4 Rxf1+ {[%emt 0:00:30]} 36. Kxf1 {Weighted Error Value: White=0.77/Black=0.32} 0-1

[Event "Canarian Championship Seniors 2022"]
[Site "Brena Baja La Palma"]
[Date "2022.06.03"]
[Round "5.4"]
[White "Perez Aleman, Pedro Tomas"]
[Black "Camino Carrio, Nicanor"]
[Result "1-0"]
[ECO "A48"]
[WhiteElo "2047"]
[BlackElo "1945"]
[Annotator "TA"]
[PlyCount "32"]
[EventDate "2022.06.01"]
[EventType "swiss"]
[EventCountry "ESP"]
[SourceTitle "playchess.com"]
[Source "ChessBase"]
[SourceQuality "1"]
[TimeControl "5400+30"]

{[%evp 20,32,16,19,23,24,25,6,12,7,40,0,44,45,38]} 1. d4 {[%emt 0:00:05]} Nf6 {[%emt 0:00:19]} 2. Bf4 {[%emt 0:00:11]} g6 {[%emt 0:01:21]} 3. e3 {[%emt 0:00:05]} Bg7 {[%emt 0:00:14]} 4. Nf3 {[%emt 0:00:16]} O-O {[%emt 0:00:56]} 5. Be2 {[%emt 0:00:51]} c5 {[%emt 0:00:41]} 6. c3 {[%emt 0:00:18]} d6 {[%emt 0:01:00]} 7. h3 {[%emt 0:00:27]} Qb6 {[%emt 0:00:50]} 8. Qb3 {[%emt 0:09:25]} Be6 {[%emt 0:00:59]} 9. Qxb6 {[%emt 0:00:10]} axb6 {[%emt 0:00:09]} 10. a3 {[%emt 0:01:09]} Nc6 {[%emt 0:01:02]} 11. Nbd2 {[%emt 0:00:08]} Rfc8 {[%emt 0:03:05] A48: 1 d4 Nf6 2 Nf3 g6: Torre, London and Colle Systems.} 12. O-O {[%emt 0:03:20]} d5 {[%emt 0:03:39]} 13. Bd3 {[%emt 0:06:34]} h6 {[%emt 0:03:11]} 14. Bh2 {[%emt 0:02:46]} g5 {[%emt 0:02:04] [#]} 15. g4 $146 {[%emt 0:04:13]} ({Predecessor:} 15. Rfe1 g4 16. hxg4 Bxg4 17. Bg3 e6 18. Nh4 cxd4 19. exd4 Na5 20. f3 Bh5 21. Bf2 {1-0 (63) Boe,M (2250)-Rusan,P (2106) Chess.com INT 2021}) 15... Na5 {[%emt 0:04:30]} 16. Rae1 {[%emt 0:02:55]} Ne4 {[%emt 0:04:51] White took control after the opening.  Weighted Error Value: White=0.12 (very precise) /Black=0.16 (very precise)} 1-0

[Event "Canarian Championship Seniors 2022"]
[Site "Brena Baja La Palma"]
[Date "2022.06.04"]
[Round "6.1"]
[White "Gutierrez Perez, Jose"]
[Black "Martin Luis, Cesar"]
[Result "1/2-1/2"]
[ECO "D46"]
[WhiteElo "1918"]
[BlackElo "2049"]
[Annotator "TA"]
[PlyCount "62"]
[EventDate "2022.06.01"]
[EventType "swiss"]
[EventCountry "ESP"]
[SourceTitle "playchess.com"]
[Source "ChessBase"]
[SourceQuality "1"]
[TimeControl "5400+30"]

{[%evp 14,62,17,0,15,0,-14,-31,-22,-35,-30,-84,-87,-63,-89,-98,-74,-73,-59,-69,-23,-16,-10,-28,-8,-160,-72,-83,-78,-98,-45,-117,-39,-37,-34,-104,-97,-128,-116,-172,-88,-126,-137,-291,-108,-101,-56,-47,0,-256,-248]} 1. d4 {[%emt 0:00:12]} Nf6 {[%emt 0:00:09]} 2. c4 {[%emt 0:00:39]} e6 {[%emt 0:00:27]} 3. Nf3 {[%emt 0:00:41]} d5 {[%emt 0:00:13]} 4. e3 {[%emt 0:05:32]} c6 {[%emt 0:06:52]} 5. Nc3 {[%emt 0:01:23]} Nbd7 {[%emt 0:00:27]} 6. Bd3 {[%emt 0:00:17]} Bd6 {[%emt 0:01:44]} 7. O-O {[%emt 0:02:39]} O-O {[%emt 0:00:06]} 8. Qe2 {[%emt 0:00:28]} Re8 {[%emt 0:20:48] D46: Semi-Slav: 5 e3 Nbd7 6 Bd3, Black avoids the Meran.} (8... e5 $5 {[%cal Re5e4]} 9. cxd5 cxd5 $11) 9. Qc2 {[%emt 0:09:56]} e5 {[%emt 0:02:38] [#]} 10. dxe5 $146 {[%emt 0:00:14]} ({Predecessor:} 10. cxd5 cxd5 11. Nb5 Bb8 12. dxe5 Nxe5 13. Be2 a6 14. Nbd4 Bd7 15. Bd2 Nc6 16. Rfd1 Qc7 {0-1 (47) Schneegass,H-Zimmermann,H DDR 1973}) 10... Nxe5 {[%emt 0:00:08] Black is slightly better.} 11. Nxe5 {[%emt 0:01:07]} Bxe5 {[%emt 0:00:02]} 12. f4 {[%emt 0:00:25]} (12. cxd5 $11 {remains equal.} cxd5 13. Nb5) 12... Bc7 $17 {[%emt 0:01:57]} 13. cxd5 {[%emt 0:00:17]} cxd5 {[%emt 0:00:37]} 14. Na4 {[%emt 0:19:24]} Bd7 {[%emt 0:02:16]} 15. Nc5 {[%emt 0:01:09]} Bc6 {[%emt 0:00:44]} 16. b4 {[%emt 0:00:12]} a6 {[%emt 0:03:50] Prevents b5.} (16... Bd6 $15 {might be stronger.}) 17. Bb2 $11 {[%emt 0:02:27]} Rxe3 {[%emt 0:06:34]} (17... Ng4 {looks sharper.} 18. Bd4 Nxe3 19. Bxh7+ Kh8) 18. Bd4 {[%emt 0:00:19]} Re8 {[%emt 0:00:18]} 19. Rf3 $2 {[%emt 0:02:02] [#]} (19. Qb2) ({White should play} 19. Qb2 $11) 19... Ne4 {[%emt 0:03:15]} (19... Re4 $142 $1 {[%cal Re4d4][%mdl 512]} 20. Qb2 Rxf4 21. Rxf4 Bxf4) 20. Raf1 {[%emt 0:00:30]} Bd6 {[%emt 0:13:56]} 21. Qb2 {[%emt 0:05:22]} Bf8 {[%emt 0:01:44]} (21... f6 $17 22. Re3 Bxc5 23. bxc5 Re7) 22. f5 {[%emt 0:06:27]} ({Better is} 22. Bxe4 $15 dxe4 23. Rg3) 22... Nxc5 {[%emt 0:03:55]} (22... Bxc5 $17 23. bxc5 f6) 23. bxc5 $15 {[%emt 0:00:28]} f6 {[%emt 0:00:44]} 24. Qf2 {[%emt 0:01:28]} (24. g4 $15) 24... Bb5 $17 {[%emt 0:00:38]} 25. Bxb5 {[%emt 0:07:13]} axb5 {[%emt 0:00:02]} 26. Rb3 {[%emt 0:00:16]} (26. Rd1 $17 {keeps fighting.}) 26... Qa5 {[%emt 0:05:55]} (26... Re4 $19 {White must now prevent ...Ra4.} 27. Qd2 Qa5) 27. Rfb1 {[%emt 0:01:26]} Qxa2 {[%emt 0:01:28] Threatens to win with ...Re2.} 28. Qg3 $2 {[%emt 0:00:05] [#]} (28. h3 $17 {was worth a try.}) 28... Kh8 $2 {[%emt 0:04:25]} (28... Ra3 $3 $19 {[%mdl 512] is more deadly. aiming for ...Rxb3.} 29. Qf2 Re2 30. Qxe2 Qxe2 31. Rxa3 b6) 29. Rxb5 {[%emt 0:01:28]} Qc2 {[%emt 0:00:14]} 30. Rxb7 {[%emt 0:12:40]} Ra2 {[%emt 0:00:03]} (30... Qxf5 $15 {was preferrable.} 31. Qf2 Qd3) 31. h3 $2 {[%emt 0:00:03][%mdl 8192] [#]} (31. Kh1 $1 $11) 31... Re2 $1 {[%emt 0:00:09] Weighted Error Value: White=0.53/Black=0.36} 1/2-1/2

[Event "Canarian Championship Seniors 2022"]
[Site "Brena Baja La Palma"]
[Date "2022.06.04"]
[Round "6.2"]
[White "Machin Arbelo, Pedro Alexis"]
[Black "Martin Rodriguez, Jose Carlos"]
[Result "1-0"]
[ECO "B50"]
[WhiteElo "1975"]
[BlackElo "1703"]
[Annotator "TA"]
[PlyCount "39"]
[EventDate "2022.06.01"]
[EventType "swiss"]
[EventCountry "ESP"]
[SourceTitle "playchess.com"]
[Source "ChessBase"]
[SourceQuality "1"]
[TimeControl "5400+30"]

{[%evp 14,39,5,7,8,1,31,21,29,19,20,20,34,35,68,41,254,251,260,257,257,240,399,374,386,377,662,640]} 1. c3 {[%emt 0:00:09]} d6 {[%emt 0:02:54]} 2. e4 {[%emt 0:01:51]} c5 {[%emt 0:01:21]} 3. Nf3 {[%emt 0:00:35]} Nc6 {[%emt 0:00:02]} 4. Bc4 {[%emt 0:01:42]} Nf6 {[%emt 0:00:18][%cal Bg8f6,Bf6e8,Be8c7,Bc7e6][%mdl 32]} 5. d3 {[%emt 0:00:35]} g6 {[%emt 0:00:13]} 6. O-O {[%emt 0:01:00]} Bg7 {[%emt 0:00:03]} 7. h3 {[%emt 0:00:28]} O-O {[%emt 0:00:06]} 8. Bb3 {[%emt 0:00:11]} e5 {[%emt 0:03:16] B50: Sicilian: 2...d6, Miscellaneous.} 9. Re1 {[%emt 0:02:09]} (9. Bg5 {seems wilder.} b5 10. a4 b4 11. Bd5) 9... Ne8 {[%emt 0:07:51] [#]} 10. Bg5 $146 {[%emt 0:04:46]} ({Predecessor:} 10. Be3 Nc7 11. Na3 b6 12. Qd2 Be6 13. Ba4 Bd7 14. Bg5 Bf6 15. Bh6 Re8 16. Bb3 {0-1 (66) Rogic,D (2494)-Heinemann,T (2501) Austria 2019}) 10... Qd7 {[%emt 0:00:57] The position is equal.} 11. Qd2 {[%emt 0:04:49]} Nc7 {[%emt 0:01:53]} 12. Bh6 {[%emt 0:05:27]} Ne6 {[%emt 0:02:06]} (12... Qe7) 13. Na3 {[%emt 0:03:55][%cal Bb1a3,Ba3c4,Bc4b6][%mdl 32]} a6 {[%emt 0:00:28]} 14. Nc4 {[%emt 0:01:54] [#] Threatens to win with Bxg7. White is more active.} b5 $2 {[%emt 0:00:21] Black cannot hold the game after this.} (14... Rb8 $14) 15. Nb6 $18 {[%emt 0:00:18][%csl LRa8,LRd7]} Qb7 {[%emt 0:00:02]} 16. Nxa8 {[%emt 0:00:17]} Qxa8 {[%emt 0:00:05]} 17. Bd5 {[%emt 0:00:57]} Bd7 $2 {[%emt 0:01:02] [#]} (17... Bb7 18. a4 b4) 18. d4 {[%emt 0:07:43]} cxd4 {[%emt 0:02:33]} 19. cxd4 {[%emt 0:00:50]} Qd8 $2 {[%emt 0:04:51]} (19... exd4 20. Bxg7 Kxg7) 20. Bxc6 {[%emt 0:00:36] Weighted Error Value: White=0.06 (flawless) /Black=0.74} 1-0